lending/lending_fUSD_20250409
["ID","MTS","AMOUNT","RATE_DAILY","PERIOD"]
[357583974,1744197048574,-500.0,0.00055068,120]
[357583975,1744197048584,-500.0,0.00055068,120]
[357583976,1744197048596,-500.0,0.00055068,120]
[357583977,1744197048606,-303.51153246,0.00055068,30]
[357583978,1744197048615,-500.0,0.00055068,120]
[357583979,1744197048625,-1549.59,0.00055068,120]
[357583980,1744197048635,-500.0,0.00055068,120]
[357583981,1744197048644,-502.75427451,0.00055068,120]
[357583982,1744197048654,-646.59,0.00055068,120]
[357583983,1744197048664,-500.0,0.00055068,120]
[357583984,1744197048674,-694.44,0.00055068,120]
[357583985,1744197048684,-246.24617733,0.00055068,120]
[357583986,1744197048695,-500.0,0.00055068,120]
[357583987,1744197048705,-500.0,0.00055068,120]
[357583988,1744197048715,-500.0,0.00055068,120]
[357583989,1744197048725,-501.13,0.00055068,120]
[357583990,1744197048735,-500.0,0.00055068,120]
[357583991,1744197048744,-500.0,0.00055068,120]
[357583992,1744197048754,-500.0,0.00055068,120]
[357583993,1744197048765,-500.0,0.00055068,120]
[357583994,1744197048775,-194.1740812,0.00055068,120]
[357583995,1744197048786,-550.04,0.00055068,120]
[357583996,1744197048796,-300.0,0.00055068,120]
[357583997,1744197048807,-500.0,0.00055068,120]
[357583998,1744197048817,-500.0,0.00055068,120]
[357583999,1744197048827,-529.87,0.00055068,120]
[357584000,1744197048837,-500.0,0.00055068,120]
[357584001,1744197048850,-500.0,0.00055068,2]
[357584002,1744197048860,-500.0,0.00055068,120]
[357584003,1744197049154,-500.0,0.00055068,120]
[357584004,1744197049166,-598.67,0.00055068,120]
[357584005,1744197049176,-500.0,0.00055068,2]
[357584006,1744197049186,-500.0,0.00055068,120]
[357584007,1744197049196,-500.0,0.00055068,120]
[357584008,1744197049207,-437.78142152,0.00055068,120]
[357584009,1744197049218,-500.0,0.00055068,120]
[357584010,1744197049228,-500.0,0.00055068,120]
[357584011,1744197049239,-500.0,0.00055068,120]
[357584012,1744197049251,-1081.89,0.00055068,120]
[357584013,1744197049263,-883.13,0.00055068,120]
[357584014,1744197049274,-564.66,0.00055068,120]
[357584015,1744197049285,-500.0,0.00055068,2]
[357584016,1744197049295,-500.0,0.00055068,120]
[357584017,1744197049307,-492.90762782,0.00055068,120]
[357584018,1744197049318,-500.0,0.00055068,120]
[357584019,1744197049329,-500.0,0.00055068,120]
[357584020,1744197049339,-500.0,0.00055068,120]
[357584021,1744197049350,-500.0,0.00055068,120]
[357584022,1744197049361,-500.0,0.00055068,120]
[357584023,1744197049371,-500.0,0.00055068,120]
[357584024,1744197049382,-520.76255629,0.00055068,120]
[357584025,1744197049392,-1256.67,0.00055068,120]
[357584026,1744197049403,-500.0,0.00055068,120]
[357584027,1744197049413,-500.0,0.00055068,120]
[357584028,1744197049423,-1102.4,0.00055068,120]
[357584029,1744197049433,-500.0,0.00055068,120]
[357584030,1744197049443,-590.97,0.00055068,120]
[357584031,1744197049453,-500.0,0.00055068,120]
[357584032,1744197049464,-500.0,0.00055068,120]
[357584033,1744197049474,-829.04,0.00055068,120]
[357584034,1744197049485,-500.0,0.00055068,120]
[357584035,1744197049494,-625.63,0.00055068,120]
[357584036,1744197049504,-538.9471609,0.00055068,120]
[357584037,1744197049514,-500.0,0.00055068,120]
[357584038,1744197049524,-500.0,0.00055068,120]
[357584039,1744197049534,-500.0,0.00055068,120]
[357584040,1744197049544,-500.0,0.00055068,120]
[357584041,1744197049554,-500.0,0.00055068,120]
[357584042,1744197049565,-500.0,0.00055068,120]
[357584043,1744197049574,-500.0,0.00055068,120]
[357584044,1744197049584,-500.0,0.00055068,120]
[357584045,1744197049595,-500.0,0.00055068,120]
[357584046,1744197049605,-500.0,0.00055068,120]
[357584047,1744197049615,-2291.45,0.00055068,120]
[357584048,1744197049625,-500.0,0.00055068,120]
[357584049,1744197049635,-500.0,0.00055068,120]
[357584050,1744197049645,-467.50550703,0.00055068,120]
[357584051,1744197049656,-500.0,0.00055068,120]
[357584052,1744197049666,-501.89086454,0.00055068,120]
[357584053,1744197049676,-500.0,0.00055068,120]
[357584054,1744197049685,-500.0,0.00055068,120]
[357584055,1744197049695,-500.0,0.00055068,120]
[357584056,1744197049705,-500.0,0.00055068,120]
[357584057,1744197049715,-500.0,0.00055068,120]
[357584058,1744197049724,-500.0,0.00055068,120]
[357584059,1744197049734,-500.0,0.00055068,120]
[357584060,1744197049744,-545.92,0.00055068,120]
[357584061,1744197049754,-500.0,0.00055068,120]
[357584062,1744197049764,-567.15,0.00055068,120]
[357584063,1744197049773,-500.0,0.00055068,120]
[357584064,1744197049783,-500.0,0.00055068,120]
[357584065,1744197049793,-500.0,0.00055068,120]
[357584066,1744197049802,-500.0,0.00055068,120]
[357584067,1744197049812,-500.0,0.00055068,120]
[357584068,1744197049821,-179.09829052,0.00055068,120]
[357584069,1744197049831,-500.0,0.00055068,30]
[357584070,1744197049841,-500.0,0.00055068,120]
[357584071,1744197049851,-582.48,0.00055068,120]
[357584072,1744197049860,-500.0,0.00055068,120]
[357584073,1744197049870,-565.02,0.00055068,120]
[357584074,1744197049880,-500.0,0.00055068,120]
[357584075,1744197049889,-500.0,0.00055068,120]
[357584076,1744197049899,-500.0,0.00055068,120]
[357584077,1744197049909,-500.0,0.00055068,120]
[357584078,1744197049920,-500.0,0.00055068,120]
[357584079,1744197049932,-500.0,0.00055068,120]
[357584080,1744197049941,-500.0,0.00055068,120]
[357584081,1744197049952,-544.35,0.00055068,120]
[357584082,1744197049962,-500.0,0.00055068,120]
[357584083,1744197049971,-500.0,0.00055068,120]
[357584084,1744197049981,-310.77443082,0.00055068,120]
[357584085,1744197049991,-500.0,0.00055068,120]
[357584086,1744197050003,-500.0,0.00055068,120]
[357584087,1744197050012,-500.0,0.00055068,120]
[357584088,1744197050021,-500.0,0.00055068,120]
[357584089,1744197050030,-500.0,0.00055068,120]
[357584090,1744197050039,-500.0,0.00055068,120]
[357584091,1744197050048,-500.0,0.00055068,120]
[357584092,1744197050057,-500.0,0.00055068,120]
[357584093,1744197050067,-500.0,0.00055068,120]
[357584094,1744197050076,-500.0,0.00055068,120]
[357584095,1744197050085,-505.71889321,0.00055068,120]
[357584096,1744197050096,-500.0,0.00055068,120]
[357584097,1744197050105,-500.0,0.00055068,120]
[357584098,1744197050115,-500.0,0.00055068,120]
[357584099,1744197050124,-500.0,0.00055068,120]
[357584100,1744197050134,-500.0,0.00055068,120]
[357584101,1744197050145,-561.39,0.00055068,120]
[357584102,1744197050154,-511.56,0.00055068,120]
[357584103,1744197050164,-500.0,0.00055068,120]
[357584104,1744197050173,-500.0,0.00055068,120]
[357584105,1744197050183,-500.0,0.00055068,120]
[357584106,1744197050192,-500.0,0.00055068,120]
[357584107,1744197050201,-500.0,0.00055068,120]
[357584108,1744197050211,-500.0,0.00055068,120]
[357584109,1744197050219,-567.6713078,0.00055068,120]
[357584110,1744197050228,-500.0,0.00055068,120]
[357584111,1744197050238,-690.75,0.00055068,120]
[357584112,1744197050247,-500.0,0.00055068,120]
[357584113,1744197050257,-500.0,0.00055068,120]
[357584114,1744197050266,-500.0,0.00055068,120]
[357584115,1744197050276,-500.0,0.00055068,120]
[357584116,1744197050285,-500.0,0.00055068,120]
[357584117,1744197050295,-599.51371144,0.00055068,120]
[357584118,1744197050305,-500.0,0.00055068,120]
[357584119,1744197050314,-500.0,0.00055068,120]
[357584120,1744197050324,-285.62474166,0.00055068,120]
[357584121,1744197050334,-500.0,0.00055068,120]
[357584122,1744197050344,-326.0850452,0.00055068,120]
[357584123,1744197050354,-500.0,0.00055068,120]
[357584124,1744197050364,-500.0,0.00055068,120]
[357584125,1744197050374,-500.0,0.00055068,120]
[357584126,1744197050385,-503.44190076,0.00055068,120]
[357584127,1744197050395,-500.0,0.00055068,120]
[357584128,1744197050405,-663.03,0.00055068,120]
[357584129,1744197050416,-500.0,0.00055068,120]
[357584130,1744197050427,-500.0,0.00055068,120]
[357584131,1744197050437,-500.0,0.00055068,120]
[357584132,1744197050449,-500.0,0.00055068,120]
[357584133,1744197050460,-500.0,0.00055068,120]
[357584134,1744197050470,-784.53,0.00055068,120]
[357584135,1744197050480,-500.0,0.00055068,120]
[357584136,1744197050491,-500.0,0.00055068,120]
[357584137,1744197050500,-500.0,0.00055068,120]
[357584138,1744197050510,-2590.7,0.00055068,120]
[357584139,1744197050520,-500.0,0.00055068,120]
[357584140,1744197050530,-500.0,0.00055068,120]
[357584141,1744197050540,-500.0,0.00055068,120]
[357584142,1744197050550,-500.0,0.00055068,120]
[357584143,1744197050560,-500.0,0.00055068,120]
[357584144,1744197050569,-599.6,0.00055068,120]
[357584145,1744197050579,-500.0,0.00055068,120]
[357584146,1744197050589,-500.0,0.00055068,120]
[357584147,1744197050599,-500.0,0.00055068,120]
[357584148,1744197050609,-544.01605595,0.00055068,120]
[357584149,1744197050619,-500.0,0.00055068,120]
[357584150,1744197050629,-500.0,0.00055068,120]
[357584151,1744197050638,-500.0,0.00055068,120]
[357584152,1744197050649,-500.0,0.00055068,120]
[357584153,1744197050659,-500.0,0.00055068,120]
[357584154,1744197050669,-500.0,0.00055068,120]
[357584155,1744197050680,-500.0,0.00055068,120]
[357584156,1744197050690,-1042.8,0.00055068,120]
[357584157,1744197050700,-500.0,0.00055068,120]
[357584158,1744197050710,-500.0,0.00055068,120]
[357584159,1744197050720,-500.0,0.00055068,120]
[357584160,1744197050729,-500.0,0.00055068,120]
[357584161,1744197050739,-500.0,0.00055068,120]
[357584162,1744197050749,-2000.0,0.00055068,120]
[357584163,1744197050758,-500.0,0.00055068,120]
[357584164,1744197050768,-500.0,0.00055068,120]
[357584165,1744197050778,-500.0,0.00055068,120]
[357584166,1744197050787,-500.0,0.00055068,120]
[357584167,1744197050797,-718.03,0.00055068,120]
[357584168,1744197050806,-500.0,0.00055068,120]
[357584169,1744197050816,-559.0,0.00055068,120]
[357584170,1744197050826,-500.0,0.00055068,120]
[357584171,1744197050836,-500.0,0.00055068,120]
[357584172,1744197050848,-500.0,0.00055068,120]
[357584173,1744197050859,-500.0,0.00055068,120]
[357584174,1744197050869,-617.42,0.00055068,120]
[357584175,1744197050878,-500.0,0.00055068,120]
[357584176,1744197050889,-500.0,0.00055068,120]
[357584177,1744197050899,-500.0,0.00055068,120]
[357584178,1744197050908,-500.0,0.00055068,120]
[357584179,1744197050919,-500.0,0.00055068,3]
[357584180,1744197050931,-500.0,0.00055068,120]
[357584181,1744197050941,-500.0,0.00055068,120]
[357584182,1744197050953,-500.0,0.00055068,120]
[357584183,1744197050963,-500.0,0.00055068,120]
[357584184,1744197050972,-500.0,0.00055068,120]
[357584185,1744197050981,-585.99,0.00055068,120]
[357584186,1744197050991,-500.0,0.00055068,120]
[357584187,1744197051001,-693.65,0.00055068,120]
[357584188,1744197051011,-206.11337488,0.00055068,120]
[357584189,1744197051021,-500.0,0.00055068,120]
[357584190,1744197051031,-500.0,0.00055068,120]
[357584191,1744197051041,-500.0,0.00055068,120]
[357584192,1744197051051,-500.0,0.00055068,120]
[357584193,1744197051061,-521.3,0.00055068,120]
[357584194,1744197051071,-500.0,0.00055068,120]
[357584195,1744197051080,-500.0,0.00055068,120]
[357584196,1744197051090,-500.0,0.00055068,120]
[357584197,1744197051102,-500.0,0.00055068,120]
[357584198,1744197051112,-524.98,0.00055068,120]
[357584199,1744197051121,-156.34320295,0.00055068,120]
[357584200,1744197051131,-500.0,0.00055068,120]
[357584201,1744197051141,-1000.0,0.00055068,120]
[357584202,1744197051150,-500.0,0.00055068,120]
[357584203,1744197051160,-500.0,0.00055068,120]
[357584204,1744197051171,-500.0,0.00055068,120]
[357584205,1744197051180,-500.0,0.00055068,120]
[357584206,1744197051189,-500.0,0.00055068,120]
[357584207,1744197051200,-500.0,0.00055068,120]
[357584208,1744197051210,-500.0,0.00055068,120]
[357584209,1744197051220,-500.0,0.00055068,120]
[357584210,1744197051230,-517.55,0.00055068,120]
[357584211,1744197051241,-500.0,0.00055068,120]
[357584212,1744197051252,-500.0,0.00055068,120]
[357584213,1744197051263,-500.0,0.00055068,120]
[357584214,1744197051274,-500.0,0.00055068,120]
[357584215,1744197051284,-500.0,0.00055068,120]
[357584216,1744197051296,-500.0,0.00055068,120]
[357584217,1744197051308,-522.75,0.00055068,120]
[357584218,1744197051324,-500.0,0.00055068,120]
[357584219,1744197051336,-500.0,0.00055068,120]
[357584220,1744197051350,-500.0,0.00055068,120]
[357584221,1744197051364,-500.0,0.00055068,120]
[357584222,1744197051375,-500.0,0.00055068,120]
[357584223,1744197051387,-771.75,0.00055068,120]
[357584224,1744197051398,-580.75,0.00055068,120]
[357584225,1744197051410,-500.0,0.00055068,120]
[357584226,1744197051421,-500.0,0.00055068,120]
[357584227,1744197051432,-500.0,0.00055068,120]
[357584228,1744197051443,-500.0,0.00055068,120]
[357584229,1744197051455,-500.0,0.00055068,120]
[357584230,1744197051467,-500.0,0.00055068,120]
[357584231,1744197051479,-500.0,0.00055068,120]
[357584232,1744197051491,-500.0,0.00055068,120]
[357584233,1744197051502,-500.0,0.00055068,120]
[357584234,1744197051513,-552.18,0.00055068,120]
[357584235,1744197051524,-381.89266217,0.00055068,120]
[357584236,1744197051536,-500.0,0.00055068,120]
[357584237,1744197051546,-500.0,0.00055068,120]
[357584238,1744197051557,-580.85,0.00055068,120]
[357584239,1744197051567,-500.0,0.00055068,120]
[357584240,1744197051577,-500.0,0.00055068,120]
[357584241,1744197051587,-500.0,0.00055068,120]
[357584242,1744197051602,-561.25,0.00055068,120]
[357584243,1744197051613,-500.0,0.00055068,120]
[357584244,1744197051624,-500.0,0.00055068,120]
[357584245,1744197051732,-1208.17,0.00055068,120]
[357584246,1744197051743,-541.0,0.00055068,120]
[357584247,1744197051755,-500.0,0.00055068,120]
[357584248,1744197051767,-500.0,0.00055068,120]
[357584249,1744197051778,-588.0,0.00055068,120]
[357584250,1744197051790,-500.0,0.00055068,120]
[357584251,1744197051801,-48331.95,0.00055068,7]
[357584252,1744197051813,-231.16334891,0.00055068,120]
[357584253,1744197051824,-500.0,0.00055068,120]
[357584254,1744197051836,-812.57,0.00055068,120]
[357584255,1744197051856,-500.0,0.00055068,120]
[357584256,1744197051868,-500.0,0.00055068,120]
[357584257,1744197051883,-1170.05,0.00055068,120]
[357584258,1744197051895,-781.39,0.00055068,120]
[357584259,1744197051914,-500.0,0.00055068,120]
[357584260,1744197051926,-500.0,0.00055068,120]
[357584261,1744197051938,-500.0,0.00055068,120]
[357584262,1744197051948,-500.0,0.00055068,120]
[357584263,1744197051960,-500.0,0.00055068,120]
[357584264,1744197051971,-873.86,0.00055068,120]
[357584265,1744197051984,-500.0,0.00055068,120]
[357584266,1744197051995,-500.0,0.00055068,36]
[357584267,1744197052007,-755.28,0.00055068,120]
[357584268,1744197052018,-500.0,0.00055068,120]
[357584269,1744197052030,-500.0,0.00055068,120]
[357584270,1744197052041,-500.0,0.00055068,120]
[357584271,1744197052053,-500.0,0.00055068,120]
[357584272,1744197052065,-500.0,0.00055068,120]
[357584273,1744197052077,-1288.5,0.00055068,120]
[357584274,1744197052090,-614.16,0.00055068,120]
[357584275,1744197052108,-1292.94,0.00055068,100]
[357584276,1744197052120,-500.0,0.00055068,120]
[357584277,1744197052132,-500.0,0.00055068,120]
[357584278,1744197052143,-1314.53,0.00055068,120]
[357584279,1744197052155,-500.0,0.00055068,120]
[357584280,1744197052168,-699.99,0.00055068,120]
[357584281,1744197052179,-500.0,0.00055068,120]
[357584282,1744197052194,-3614.08,0.00055068,2]
[357584283,1744197052206,-500.0,0.00055068,120]
[357584284,1744197052218,-560.58,0.00055068,120]
[357584285,1744197052229,-656.66,0.00055068,120]
[357584286,1744197052240,-500.0,0.00055068,120]
[357584287,1744197052252,-500.0,0.00055068,120]
[357584288,1744197052271,-500.0,0.00055068,120]
[357584289,1744197052283,-500.0,0.00055068,120]
[357584290,1744197052296,-500.0,0.00055068,120]
[357584291,1744197052308,-508.46778391,0.00055068,120]
[357584292,1744197052320,-500.0,0.00055068,120]
[357584293,1744197052331,-500.0,0.00055068,120]
[357584294,1744197052343,-5550.213396,0.00055068,120]
[357584295,1744197052360,-500.0,0.00055068,120]
[357584296,1744197052372,-500.0,0.00055068,120]
[357584297,1744197052384,-500.0,0.00055068,120]
[357584298,1744197052400,-514.5,0.00055068,120]
[357584299,1744197052412,-500.0,0.00055068,120]
[357584300,1744197052424,-636.07,0.00055068,120]
[357584301,1744197052436,-500.0,0.00055068,120]
[357584302,1744197052447,-500.0,0.00055068,120]
[357584303,1744197052458,-501.44,0.00055068,120]
[357584304,1744197052469,-1884.86,0.00055068,120]
[357584305,1744197052480,-500.0,0.00055068,120]
[357584306,1744197052492,-744.17,0.00055068,120]
[357584307,1744197052504,-547.32,0.00055068,120]
[357584308,1744197052516,-500.0,0.00055068,120]
[357584309,1744197052528,-945.51,0.00055068,120]
[357584310,1744197052539,-1262.09,0.00055068,120]
[357584311,1744197052550,-760.88,0.00055068,120]
[357584312,1744197052561,-500.0,0.00055068,120]
[357584313,1744197052572,-1437.94,0.00055068,120]
[357584314,1744197052583,-500.0,0.00055068,120]
[357584315,1744197052597,-500.0,0.00055068,120]
[357584316,1744197052609,-555.76,0.00055068,120]
[357584317,1744197052622,-500.0,0.00055068,120]
[357584318,1744197052632,-500.0,0.00055068,120]
[357584319,1744197052642,-500.0,0.00055068,120]
[357584320,1744197052652,-3752.45,0.00055068,120]
[357584321,1744197052662,-500.0,0.00055068,120]
[357584322,1744197052671,-500.0,0.00055068,120]
[357584323,1744197052681,-500.0,0.00055068,120]
[357584324,1744197052698,-564.9,0.00055068,120]
[357584325,1744197052712,-604.71,0.00055068,120]
[357584326,1744197052722,-500.0,0.00055068,120]
[357584327,1744197052734,-5223.58,0.00055068,120]
[357584328,1744197052745,-500.0,0.00055068,120]
[357584329,1744197052754,-500.0,0.00055068,120]
[357584330,1744197052764,-2206.69,0.00055068,120]
[357584331,1744197052774,-500.0,0.00055068,120]
[357584332,1744197052784,-500.0,0.00055068,120]
[357584333,1744197052794,-500.0,0.00055068,120]
[357584334,1744197052805,-4739.319362,0.00055068,120]
[357584335,1744197052815,-500.0,0.00055068,120]
[357584336,1744197052824,-500.0,0.00055068,120]
[357584337,1744197052834,-1094.29,0.00055068,120]
[357584338,1744197052845,-500.0,0.00055068,120]
[357584339,1744197052855,-855.53,0.00055068,120]
[357584340,1744197052865,-705.03,0.00055068,120]
[357584341,1744197052875,-500.0,0.00055068,120]
[357584342,1744197052885,-1396.51,0.00055068,120]
[357584343,1744197052894,-546.86,0.00055068,120]
[357584344,1744197052910,-500.0,0.00055068,120]
[357584345,1744197052920,-500.0,0.00055068,120]
[357584346,1744197052929,-500.0,0.00055068,120]
[357584347,1744197052942,-22068.31,0.00055068,120]
[357584348,1744197052953,-891.28,0.00055068,118]
[357584349,1744197052963,-500.0,0.00055068,120]
[357584350,1744197052972,-901.19,0.00055068,120]
[357584351,1744197052982,-539.91,0.00055068,120]
[357584352,1744197052992,-530.37,0.00055068,120]
[357584353,1744197053002,-500.0,0.00055068,120]
[357584354,1744197053011,-513.45971735,0.00055068,120]
[357584355,1744197053020,-500.0,0.00055068,120]
[357584356,1744197053031,-733.24,0.00055068,120]
[357584357,1744197053041,-500.0,0.00055068,120]
[357584358,1744197053050,-2152.77,0.00055068,120]
[357584359,1744197053060,-817.8,0.00055068,120]
[357584360,1744197053070,-1000.35,0.00055068,120]
[357584361,1744197053079,-500.0,0.00055068,120]
[357584362,1744197053089,-500.0,0.00055068,120]
[357584363,1744197053103,-699.64,0.00055068,120]
[357584364,1744197053112,-500.0,0.00055068,120]
[357584365,1744197053122,-500.0,0.00055068,120]
[357584366,1744197053132,-520.74,0.00055068,120]
[357584367,1744197053142,-500.0,0.00055068,120]
[357584368,1744197053153,-500.0,0.00055068,120]
[357584369,1744197053164,-500.0,0.00055068,120]
[357584370,1744197053175,-903.89,0.00055068,120]
[357584371,1744197053186,-500.0,0.00055068,120]
[357584372,1744197053196,-500.0,0.00055068,120]
[357584373,1744197053205,-1004.85,0.00055068,120]
[357584374,1744197053215,-1451.25,0.00055068,120]
[357584375,1744197053224,-500.0,0.00055068,120]
[357584376,1744197053234,-1405.83,0.00055068,120]
[357584377,1744197053243,-500.0,0.00055068,120]
[357584378,1744197053254,-500.0,0.00055068,120]
[357584379,1744197053264,-1171.19,0.00055068,120]
[357584380,1744197053273,-1683.53,0.00055068,120]
[357584381,1744197053283,-500.0,0.00055068,120]
[357584382,1744197053293,-500.0,0.00055068,120]
[357584383,1744197053302,-206.00938132,0.00055068,120]
[357584384,1744197053312,-500.08118075,0.00055068,120]
[357584385,1744197053322,-500.0,0.00055068,120]
[357584386,1744197053332,-500.0,0.00055068,120]
[357584387,1744197053345,-503.87,0.00055068,120]
[357584388,1744197053356,-882.4,0.00055068,120]
[357584389,1744197053366,-535.72,0.00055068,120]
[357584390,1744197053376,-500.0,0.00055068,120]
[357584391,1744197053387,-389.85467109,0.00055068,120]
[357584392,1744197053677,-110.14532891,0.00055068,120]
[357584393,1744197053688,-500.0,0.00055068,120]
[357584394,1744197053699,-539.0,0.00055068,120]
[357584395,1744197053709,-500.0,0.00055068,120]
[357584396,1744197053719,-500.0,0.00055068,120]
[357584397,1744197053728,-500.0,0.00055068,120]
[357584398,1744197053738,-269.28726122,0.00055068,120]
[357584399,1744197053747,-500.0,0.00055068,120]
[357584400,1744197053757,-500.0,0.00055068,120]
[357584401,1744197053766,-500.0,0.00055068,120]
[357584402,1744197053776,-526.91,0.00055068,120]
[357584403,1744197053786,-15603.24,0.00055068,120]
[357584404,1744197053795,-500.0,0.00055068,120]
[357584405,1744197053805,-500.0,0.00055068,120]
[357584406,1744197053815,-500.0,0.00055068,120]
[357584407,1744197053825,-500.0,0.00055068,120]
[357584408,1744197053834,-548.13,0.00055068,120]
[357584409,1744197053846,-532.80573114,0.00055068,120]
[357584410,1744197053855,-500.0,0.00055068,120]
[357584411,1744197053865,-706.91,0.00055068,120]
[357584412,1744197053875,-500.0,0.00055068,120]
[357584413,1744197053884,-649.13,0.00055068,120]
[357584414,1744197053894,-879.84,0.00055068,120]
[357584415,1744197053906,-1085.63,0.00055068,120]
[357584416,1744197053915,-500.0,0.00055068,120]
[357584417,1744197053925,-500.0,0.00055068,120]
[357584418,1744197053935,-1369.8,0.00055068,120]
[357584419,1744197053948,-622.97,0.00055068,120]
[357584420,1744197053958,-500.0,0.00055068,120]
[357584421,1744197053967,-853.4,0.00055068,120]
[357584422,1744197053977,-500.0,0.00055068,120]
[357584423,1744197053988,-500.0,0.00055068,120]
[357584424,1744197053998,-762.84,0.00055068,120]
[357584425,1744197054008,-584.49,0.00055068,120]
[357584426,1744197054019,-1000.0,0.00055068,120]
[357584427,1744197054030,-500.0,0.00055068,120]
[357584428,1744197054039,-546.92,0.00055068,120]
[357584429,1744197054048,-500.0,0.00055068,120]
[357584430,1744197054058,-500.0,0.00055068,120]
[357584431,1744197054067,-500.0,0.00055068,120]
[357584432,1744197054077,-1742.43,0.00055068,120]
[357584433,1744197054087,-522.26,0.00055068,120]
[357584434,1744197054099,-813.69,0.00055068,120]
[357584435,1744197054111,-536.4,0.00055068,120]
[357584436,1744197054121,-950.59,0.00055068,120]
[357584437,1744197054130,-500.0,0.00055068,120]
[357584438,1744197054140,-500.0,0.00055068,120]
[357584439,1744197054149,-500.0,0.00055068,16]
[357584440,1744197054158,-827.39,0.00055068,120]
[357584441,1744197054168,-500.0,0.00055068,120]
[357584442,1744197054178,-500.0,0.00055068,120]
[357584443,1744197054188,-500.0,0.00055068,120]
[357584444,1744197054197,-500.0,0.00055095,120]
[357584445,1744197054206,-500.0,0.00055123,120]
[357584446,1744197054216,-150.0,0.00055142,14]
[357584447,1744197054226,-500.0,0.0005515,120]
[357584448,1744197054235,-500.0,0.00055178,120]
[357584449,1744197054245,-150.0,0.00055203,14]
[357584450,1744197054255,-500.0,0.00055205,120]
[357584451,1744197054265,-150.0,0.00055207,14]
[357584452,1744197054274,-150.0,0.00055224,14]
[357584453,1744197054284,-150.0,0.00055226,14]
[357584454,1744197054294,-500.0,0.00055232,120]
[357584455,1744197054303,-500.0,0.0005526,120]
[357584456,1744197054313,-150.0,0.00055282,14]
[357584457,1744197054323,-150.0,0.00055287,14]
[357584458,1744197054332,-536.71929048,0.00055287,120]
[357584459,1744197054342,-150.0,0.00055294,14]
[357584460,1744197054355,-213.14,0.000553,54]
[357584461,1744197054365,-213.14,0.000553,54]
[357584462,1744197054375,-213.14,0.000553,54]
[357584463,1744197054395,-213.14,0.000553,54]
[357584464,1744197054409,-213.14,0.000553,54]
[357584465,1744197054418,-213.14,0.000553,54]
[357584466,1744197054427,-213.14,0.000553,54]
[357584467,1744197054436,-213.14,0.000553,54]
[357584468,1744197054446,-213.14,0.000553,54]
[357584469,1744197054456,-213.14,0.000553,54]
[357584470,1744197054464,-213.14,0.000553,54]
[357584471,1744197054472,-213.14,0.000553,54]
[357584472,1744197054479,-213.14,0.000553,54]
[357584473,1744197054486,-213.14,0.000553,54]